lending/lending_fUSD_20260104
["ID","MTS","AMOUNT","RATE_DAILY","PERIOD"]
[400403836,1767515710103,500.0,0.00017897,2]
[400403837,1767515710146,500.0,0.00017897,2]
[400403838,1767515710188,500.0,0.00017897,2]
[400403839,1767515710231,500.0,0.00017897,2]
[400403840,1767515710558,500.0,0.00017897,2]
[400403841,1767515710594,433.25296488,0.00017897,2]
[400403842,1767515710627,500.0,0.00017897,2]
[400403843,1767515710661,500.0,0.00017897,2]
[400403844,1767515710696,500.0,0.00017897,2]
[400403845,1767515710724,277.35679052,0.00017099,2]
[400403846,1767515710758,389.02476256,0.00017897,2]
[400403847,1767515710786,110.97523744,0.00017897,2]
[400403848,1767515710819,500.0,0.00017897,2]
[400403849,1767515710852,500.0,0.00017897,2]
[400403850,1767515710884,500.0,0.00017897,2]
[400403851,1767515710920,500.0,0.00017897,2]
[400403852,1767515710956,500.0,0.00017897,2]
[400403853,1767515710991,500.0,0.00017897,2]
[400403854,1767515711024,500.0,0.00017897,2]
[400403855,1767515711064,500.0,0.00017897,2]
[400403856,1767515711103,500.0,0.00017897,2]
[400403857,1767515711137,500.0,0.00017897,2]
[400403858,1767515711175,500.0,0.00017897,2]
[400403859,1767515711217,500.0,0.00017897,2]
[400403860,1767515711251,500.0,0.00017897,2]
[400403861,1767515711286,500.0,0.00017897,2]
[400403862,1767515711322,500.0,0.00017897,2]
[400403863,1767515711357,500.0,0.00017897,2]
[400403864,1767515711392,500.0,0.00017897,2]
[400403865,1767515711432,500.0,0.00017897,2]
[400403866,1767515711519,500.0,0.00017897,2]
[400403867,1767515711564,389.03476256,0.00017897,2]
[400403868,1767515711595,110.96523744,0.00017897,2]
[400403869,1767515711637,500.0,0.00017897,2]
[400403870,1767515711678,500.0,0.00017897,2]
[400403871,1767515711712,500.0,0.00017897,2]
[400403872,1767515711751,500.0,0.00017897,2]
[400403873,1767515711790,500.0,0.00017897,2]
[400403874,1767515711942,500.0,0.00017897,2]
[400403875,1767515712049,500.0,0.00017897,2]
[400403876,1767515713487,179.52751018,0.000178,2]
[400403879,1767515716393,166.84423087,0.00043664,120]
[400403888,1767515720205,500.0,0.00017897,2]
[400403889,1767515720244,500.0,0.00017897,2]
[400403890,1767515720280,500.0,0.00017897,2]
[400403891,1767515720316,500.0,0.00017897,2]
[400403892,1767515720359,500.0,0.00017897,2]
[400403893,1767515720405,500.0,0.00017897,2]
[400403894,1767515720445,500.0,0.00017897,2]
[400403895,1767515720484,500.0,0.00017897,2]
[400403896,1767515720520,500.0,0.00017897,2]
[400403897,1767515720557,500.0,0.00017897,2]
[400403898,1767515720700,500.0,0.00017897,2]
[400403899,1767515720733,500.0,0.00017897,2]
[400403900,1767515720775,209.51725238,0.00017897,2]
[400403901,1767515720807,290.48274762,0.00017897,2]
[400403902,1767515720844,500.0,0.00017897,2]
[400403903,1767515720879,500.0,0.00017897,2]
[400403904,1767515720914,500.0,0.00017897,2]
[400403905,1767515720946,500.0,0.00017897,2]
[400403906,1767515720978,500.0,0.00017897,2]
[400403907,1767515721011,500.0,0.00017897,2]
[400403908,1767515721049,500.0,0.00017897,2]
[400403909,1767515721083,500.0,0.00017897,2]
[400403910,1767515721115,500.0,0.00017897,2]
[400403911,1767515721150,433.25296488,0.00017897,2]
[400403912,1767515721183,500.0,0.00017897,2]
[400403913,1767515721218,500.0,0.00017897,2]
[400403914,1767515721251,500.0,0.00017897,2]
[400403915,1767515721470,500.0,0.00017897,2]
[400403916,1767515721523,500.0,0.00017897,2]
[400403917,1767515721558,500.0,0.00017897,2]
[400403918,1767515721592,500.0,0.00017897,2]
[400403919,1767515721624,500.0,0.00017897,2]
[400403920,1767515721662,500.0,0.00017897,2]
[400403921,1767515721708,276.2742875,0.00017897,2]
[400403922,1767515721739,223.7257125,0.00017897,2]
[400403923,1767515721778,500.0,0.00017897,2]
[400403924,1767515721813,500.0,0.00017897,2]
[400403925,1767515721852,500.0,0.00017897,2]
[400403926,1767515721894,500.0,0.00017897,2]
[400403929,1767515729616,500.0,0.00017897,2]
[400403930,1767515729648,500.0,0.00017897,2]
[400403931,1767515729680,500.0,0.00017897,2]
[400403932,1767515729714,500.0,0.00017897,2]
[400403933,1767515729758,500.0,0.00017897,2]
[400403934,1767515729793,500.0,0.00017897,2]
[400403935,1767515729823,500.0,0.00017897,2]
[400403936,1767515729853,500.0,0.00017897,2]
[400403937,1767515729882,500.0,0.00017897,2]
[400403938,1767515729913,500.0,0.00017897,2]
[400403939,1767515729943,500.0,0.00017897,2]
[400403940,1767515729978,500.0,0.00017897,2]
[400403941,1767515730012,500.0,0.00017897,2]
[400403942,1767515730042,500.0,0.00017897,2]
[400403943,1767515730079,500.0,0.00017897,2]
[400403944,1767515730112,276.2842875,0.00017897,2]
[400403945,1767515730140,223.7157125,0.00017897,2]
[400403946,1767515730170,500.0,0.00017897,2]
[400403947,1767515730201,500.0,0.00017897,2]
[400403948,1767515730246,391.99951564,0.00017897,2]
[400403953,1767515741208,584.30188117,0.00043664,120]
[400403954,1767515748960,8384.29477186,0.00017799,2]
[400403955,1767515748988,6336.54907523,0.00017799,2]
[400403957,1767515751433,1001.27930032,0.00017889,2]
[400403961,1767515753930,2662.18162445,0.0001781,2]
[400403963,1767515753954,10000.01,0.0001781,2]
[400403964,1767515753978,2058.65222262,0.0001781,2]
[400403966,1767515758936,7941.35777738,0.00017821,2]
[400403967,1767515758960,6779.48606969,0.00017821,2]
[400403968,1767515761263,300.0,0.00017898,2]
[400403969,1767515761783,500.0,0.00043664,120]
[400403970,1767515762370,550.0,0.00017898,2]
[400403971,1767515762685,300.0,0.00017898,2]
[400403972,1767515763934,2070.52393031,0.00017833,2]
[400403973,1767515763960,10000.01,0.00017833,2]
[400403974,1767515763985,2650.30991676,0.00017833,2]
[400403976,1767515768946,7349.70008324,0.00017844,2]
[400403977,1767515768971,7371.14376383,0.00017844,2]
[400403978,1767515770200,500.0,0.00017898,2]
[400403979,1767515770252,500.0,0.00017898,2]
[400403980,1767515771083,500.0,0.00017898,2]
[400403981,1767515771335,500.0,0.00017898,2]
[400403982,1767515771396,500.0,0.00017898,2]
[400403983,1767515771966,128.86623617,0.00017898,2]
[400403984,1767515771994,371.13376383,0.00017898,2]
[400403985,1767515772046,500.0,0.00017898,2]
[400403986,1767515772906,500.0,0.00017898,2]
[400403987,1767515772954,500.0,0.00017898,2]
[400403988,1767515773214,456.02619575,0.00017898,2]
[400403989,1767515773605,500.0,0.00017898,2]
[400403990,1767515773941,7172.85004042,0.00017855,2]
[400403991,1767515773970,7547.99380665,0.00017855,2]
[400403992,1767515774007,500.0,0.00017898,2]
[400403993,1767515774360,500.0,0.00017898,2]
[400403994,1767515774767,500.0,0.00017898,2]
[400403995,1767515775075,324.16195686,0.00017898,2]
[400403996,1767515779039,627.85423649,0.00017866,2]
[400403997,1767515779066,10000.01,0.00017866,2]
[400403998,1767515779092,4092.97961058,0.00017866,2]
[400403999,1767515779908,2075.65390486,0.00017799,2]
[400404000,1767515779971,3188.92,0.00017343,2]
[400404001,1767515783943,642.45648456,0.00017878,2]
[400404002,1767515783981,10000.01,0.00017878,2]
[400404003,1767515784010,4078.37736251,0.00017878,2]
[400404004,1767515788941,5921.63263749,0.00017889,2]
[400404005,1767515788967,8799.21120958,0.00017889,2]
[400404009,1767515818938,500.0,0.00017898,2]
[400404011,1767515818988,500.0,0.00017898,2]
[400404013,1767515819039,200.79879042,0.00017898,2]
[400404014,1767515819062,65.89749219,0.00017898,2]
[400404015,1767515821283,300.0,0.00017898,2]
[400404021,1767515825657,642.94,0.00043664,120]
[400404022,1767515825692,242.98557354,0.00043664,120]
[400404023,1767515827964,288.96912513,0.00017898,2]
[400404024,1767515828005,200.0,0.00043664,120]
[400404025,1767515828624,200.0,0.00043664,120]
[400404026,1767515829552,200.0,0.00043664,120]
[400404027,1767515831138,251.4768403,0.00043664,120]
[400404028,1767515832790,1953.46131777,0.00017799,2]
[400404030,1767515881527,300.0,0.00017898,2]
[400404031,1767515889274,150.0,0.0001736,2]
[400404032,1767515893669,1200.0,0.00017898,2]
[400404034,1767515928539,4633.69237731,0.00017799,2]
[400404035,1767515933381,1107.9896876,0.0001781,2]
[400404036,1767515933408,3525.70268965,0.0001781,2]
[400404037,1767515938438,4633.69237725,0.00017821,2]
[400404038,1767515941679,550.0,0.00017898,2]
[400404039,1767515942602,300.0,0.00017898,2]
[400404040,1767515943430,990.6149331,0.00017833,2]
[400404041,1767515943455,3643.07744415,0.00017833,2]
[400404042,1767515945624,360.94710382,0.00017898,2]
[400404043,1767515948392,4633.69237725,0.00017844,2]
[400404044,1767515953406,1362.29307478,0.00017855,2]
[400404045,1767515953431,3271.39930247,0.00017855,2]
[400404046,1767515958393,4633.69237725,0.00017866,2]
[400404047,1767515963385,2094.91832028,0.00017878,2]
[400404048,1767515963411,2538.77405697,0.00017878,2]
[400404049,1767515968381,4633.69237725,0.00017889,2]
[400404050,1767515971889,500.0,0.00017898,2]
[400404051,1767515971929,500.0,0.00017898,2]
[400404052,1767515971969,544.44852751,0.00017898,2]
[400404053,1767515977737,166.66,0.0001788,2]
[400404054,1767515993617,272.89179953,0.00017898,2]
[400404055,1767516001170,300.0,0.00017898,2]
[400404056,1767516001201,543.54323874,0.00017898,2]
[400404057,1767516001227,656.45676126,0.00017898,2]
[400404058,1767516004308,9343.55323874,0.00017889,2]
[400404059,1767516004333,10000.01,0.00017889,2]
[400404060,1767516004359,2579.47676126,0.00017889,2]
[400404061,1767516006825,164.85,0.00017889,2]
[400404062,1767516016298,1632.3679,0.000178,2]
[400404063,1767516036288,150.0,0.00017256,2]
[400404064,1767516061757,500.0,0.00043665,120]
[400404065,1767516062950,500.0,0.00017898,2]
[400404066,1767516073163,500.0,0.00043665,120]
[400404067,1767516073643,315.91313865,0.00043665,120]
[400404068,1767516076601,500.0,0.00017898,2]
[400404069,1767516088365,170.53,0.00017168,2]
[400404070,1767516095168,7047.1121,0.00017799,2]
[400404071,1767516095193,3403.21856128,0.00017799,2]
[400404072,1767516100169,6596.79143872,0.0001781,2]
[400404073,1767516100197,3853.53922249,0.0001781,2]
[400404074,1767516105253,6146.47077751,0.00017821,2]
[400404075,1767516105277,4303.8598837,0.00017821,2]
[400404076,1767516107223,1000.0,0.00043665,120]
[400404077,1767516110204,5696.1501163,0.00017833,2]
[400404078,1767516110230,4754.18054491,0.00017833,2]
[400404079,1767516114456,1000.0,0.00043665,120]
[400404080,1767516115174,5245.82945509,0.00017844,2]
[400404081,1767516115199,5204.50120612,0.00017844,2]
[400404082,1767516116040,1000.0,0.00043665,120]
[400404083,1767516117060,1000.0,0.00043665,120]
[400404084,1767516118028,1000.0,0.00043665,120]
[400404085,1767516118983,1000.0,0.00043665,120]
[400404086,1767516119927,1000.0,0.00043665,120]
[400404087,1767516120184,4795.50879388,0.00017855,2]
[400404088,1767516120212,5654.82186733,0.00017855,2]
[400404089,1767516120725,1000.0,0.00043665,120]
[400404090,1767516121216,300.0,0.00017898,2]
[400404091,1767516121709,1000.0,0.00043665,120]
[400404092,1767516122059,550.0,0.00017898,2]
[400404093,1767516122339,1000.0,0.00043665,120]
[400404094,1767516122649,1000.0,0.00043665,120]
[400404096,1767516123188,1000.0,0.00043665,120]
[400404097,1767516123497,1000.0,0.00043665,120]
[400404098,1767516124146,1000.0,0.00043665,120]
[400404099,1767516124377,1000.0,0.00043665,120]
[400404100,1767516125034,1000.0,0.00043665,120]
[400404101,1767516125166,3495.18813267,0.00017866,2]
[400404102,1767516125196,6955.14252854,0.00017866,2]
[400404103,1767516129776,1000.0,0.00043665,120]
[400404104,1767516130159,1000.0,0.00043665,120]
[400404105,1767516130193,3044.86747146,0.00017878,2]
[400404106,1767516130219,7405.46318975,0.00017878,2]
[400404107,1767516130610,1000.0,0.00043665,120]
[400404108,1767516130935,1000.0,0.00043665,120]
[400404109,1767516131389,1000.0,0.00043665,120]
[400404110,1767516131817,1000.0,0.00043665,120]
[400404111,1767516132232,1000.0,0.00043665,120]
[400404112,1767516132684,1000.0,0.00043665,120]
[400404113,1767516133144,1000.0,0.00043665,120]
[400404114,1767516133518,1000.0,0.00043665,120]
[400404115,1767516133994,1000.0,0.00043665,120]
[400404116,1767516134484,1000.0,0.00043665,120]
[400404117,1767516135157,2594.54681025,0.00017889,2]
[400404118,1767516135182,7855.78385096,0.00017889,2]
[400404119,1767516136775,151.0,0.00017899,2]
[400404120,1767516137429,151.0,0.00017899,2]
[400404121,1767516138069,151.0,0.00017899,2]
[400404122,1767516138768,153.87469882,0.00017899,2]
[400404123,1767516139447,1000.0,0.00043665,120]
[400404124,1767516139954,1000.0,0.00043665,120]
[400404125,1767516140646,1000.0,0.00043665,120]
[400404126,1767516140923,1000.0,0.00043665,120]
[400404127,1767516141397,1000.0,0.00043665,120]
[400404128,1767516141814,1000.0,0.00043665,120]
[400404129,1767516143485,707.0,0.00043665,120]
[400404130,1767516154070,1000.0,0.00043665,120]
[400404131,1767516157887,1000.0,0.00043665,120]
[400404132,1767516160113,1000.0,0.00043665,120]
[400404133,1767516160165,1000.0,0.00043665,120]
[400404134,1767516161118,1000.0,0.00043665,120]
[400404135,1767516163577,892.37,0.00043665,120]
[400404136,1767516165700,1000.0,0.00043665,120]
[400404137,1767516166818,1000.0,0.00043665,120]
[400404138,1767516166861,1000.0,0.00043665,120]
[400404139,1767516167273,1000.0,0.00043665,120]
[400404140,1767516167701,1000.0,0.00043665,120]
[400404141,1767516173461,-4581.52,0.0001719,2]
[400404142,1767516177869,5000.0,0.00043665,120]
[400404143,1767516179947,5000.0,0.00043665,120]
[400404144,1767516179988,5000.0,0.00043665,120]
[400404145,1767516181677,5000.0,0.00043665,120]
[400404146,1767516182972,5000.0,0.00043665,120]
[400404150,1767516195574,-1000.0,0.00017898,2]
[400404151,1767516195608,-1200.0,0.00017898,2]
[400404153,1767516218685,-2619.24239663,0.00017899,2]
[400404154,1767516218711,-10000.01,0.00017899,2]
[400404155,1767516241347,300.0,0.00017898,2]
[400404179,1767516281488,166.66,0.00016317,2]
[400404180,1767516281681,166.66,0.0001666,2]
[400404181,1767516282093,166.66,0.00017004,2]
[400404182,1767516282305,166.66,0.00017347,2]
[400404183,1767516282538,166.66,0.00017691,2]
[400404184,1767516293640,2369.89897798,0.00017799,2]
[400404185,1767516298687,2369.89897795,0.0001781,2]
[400404186,1767516301567,300.0,0.00017898,2]
[400404187,1767516301598,1200.0,0.00017898,2]
[400404188,1767516301896,550.0,0.00017898,2]
[400404189,1767516302315,300.0,0.00017898,2]
[400404190,1767516303368,400.37,0.00017172,2]
[400404191,1767516303758,1376.54204407,0.00017821,2]
[400404192,1767516303783,993.35693388,0.00017821,2]
[400404193,1767516308584,2369.89897795,0.00017833,2]
[400404194,1767516310045,166.43677047,0.00017799,2]
[400404195,1767516313617,2369.89897795,0.00017844,2]
[400404196,1767516315499,4175.76880848,0.00043665,30]
[400404197,1767516316686,505.83955928,0.00032,120]
[400404198,1767516318589,2369.89897795,0.00017855,2]
[400404199,1767516323584,1730.5193618,0.00017866,2]
[400404200,1767516323609,639.37961615,0.00017866,2]
[400404201,1767516323809,9360.63038385,0.00017867,2]
[400404202,1767516323834,10000.01,0.00017867,2]
[400404203,1767516323861,10000.01,0.00017867,2]
[400404204,1767516323888,58.48853395,0.00017867,2]
[400404205,1767516328607,2369.89897795,0.00017878,2]
[400404206,1767516330172,500.0,0.00017898,2]
[400404207,1767516333591,2369.89897795,0.00017889,2]
[400404208,1767516334069,4701.72351015,0.00017809,2]
[400404209,1767516334094,4505.61443985,0.00017809,2]
[400404210,1767516341118,3487.74255,0.0001788,2]
[400404211,1767516341149,2006.65301015,0.0001788,2]
[400404212,1767516341172,1481.08953985,0.0001788,2]
[400404213,1767516341202,3487.74255,0.0001788,2]
[400404214,1767516341339,3487.74255,0.0001788,2]
[400404215,1767516341426,1543.43536015,0.0001788,2]
[400404216,1767516341451,1944.30718985,0.0001788,2]
[400404217,1767516341745,3487.74255,0.0001788,2]
[400404218,1767516341782,3487.74255,0.0001788,2]
[400404219,1767516342091,1080.21771015,0.0001788,2]
[400404220,1767516342114,2407.52483985,0.0001788,2]
[400404221,1767516342144,3487.74255,0.0001788,2]
[400404222,1767516342173,3487.74255,0.0001788,2]
[400404223,1767516344847,3008.2112738,0.00043665,120]
[400404224,1767516348575,500.0,0.00017898,2]
[400404225,1767516361580,300.0,0.00017898,2]
[400404226,1767516362731,1645.99,0.00017175,2]
[400404227,1767516363103,7554.02,0.00017889,2]
[400404228,1767516363127,10000.01,0.00017889,2]
[400404229,1767516363151,1941.3951608,0.00017889,2]
[400404230,1767516365601,500.0,0.00017898,2]
[400404231,1767516377564,7558.6148392,0.00017799,2]
[400404232,1767516377597,10000.01,0.00017799,2]
[400404233,1767516377626,10000.01,0.00017799,2]
[400404234,1767516377657,10000.01,0.00017799,2]
[400404235,1767516377685,10000.01,0.00017799,2]
[400404236,1767516377713,10000.01,0.00017799,2]
[400404237,1767516377738,10000.01,0.00017799,2]
[400404238,1767516377764,10000.01,0.00017799,2]
[400404239,1767516377790,10000.01,0.00017799,2]
[400404240,1767516377818,10000.01,0.00017799,2]
[400404241,1767516390589,171.18,0.00013711,2]
[400404242,1767516390791,171.18,0.00015996,2]
[400404243,1767516405061,159.0,0.00043665,65]
[400404244,1767516406406,309.48,0.00043665,120]
[400404245,1767516425138,-177.33670739,0.00017699,2]
[400404246,1767516425160,-282.939854,0.00017708,2]
[400404247,1767516425185,-202.27838759,0.00017798,2]
[400404248,1767516425206,-500.0,0.00017798,2]
[400404249,1767516425227,-547.67642959,0.00017798,2]
[400404250,1767516469348,923.01079617,0.00043665,120]
[400404251,1767516514525,660.48,0.00016874,2]
[400404253,1767516550112,-383.81208102,0.00017099,2]
[400404254,1767516550137,-2528.63161929,0.00017399,2]
[400404255,1767516570408,-300.0,0.00017698,2]
[400404256,1767516570430,-1200.0,0.00017698,2]
[400404257,1767516570452,-300.0,0.00017698,2]
[400404258,1767516570474,-3553.471578,0.00017699,2]
[400404261,1767516591529,230.7735811,0.00043665,120]
[400404270,1767516631573,-661.11556592,0.00017699,2]
[400404271,1767516631584,-168.11859734,0.00017699,2]
[400404272,1767516631594,-300.0,0.00017699,2]
[400404273,1767516631604,-1739.11877444,0.00017699,2]
[400404274,1767516631613,-365.10662811,0.00017705,2]
[400404275,1767516631623,-300.0,0.0001771,2]
[400404276,1767516631633,-4214.58714385,0.00017721,2]
[400404277,1767516631643,-431.1772499,0.00017735,2]
[400404278,1767516631653,-300.0,0.00017743,2]
[400404279,1767516631662,-300.0,0.00017743,2]
[400404280,1767516631672,-1200.0,0.00017743,2]
[400404281,1767516631682,-4214.58714385,0.00017744,2]
[400404282,1767516631692,-4214.58714385,0.00017766,2]
[400404283,1767516631702,-4214.58714385,0.00017788,2]
[400404284,1767516631715,-151.0,0.00017796,2]
[400404285,1767516631725,-33.43753967,0.00017798,2]
[400404286,1767516631734,-252.66297268,0.00017798,2]
[400404287,1767516631744,-387.20497072,0.00017798,2]
[400404288,1767516631758,-176.612596,0.00017798,2]
[400404289,1767516631767,-195.0,0.00017798,2]
[400404290,1767516631777,-177.33670738,0.00017798,2]
[400404291,1767516631789,-550.0,0.00017798,2]
[400404292,1767516631798,-2500.0,0.00017798,2]
[400404293,1767516631809,-788.72422046,0.00017799,2]
[400404294,1767516631820,-1432.6153019,0.00017799,2]
[400404295,1767516631831,-737.22721849,0.00017799,2]
[400404297,1767516631842,-39972.7417155,0.00017799,2]
[400404299,1767516631853,-1090.32619314,0.00017799,2]
[400404301,1767516631865,-3556.59746186,0.00017799,2]
[400404328,1767516633634,250.0,0.00017,2]
[400404329,1767516637596,-597.05296577,0.00017799,2]
[400404330,1767516637608,-33329.90995989,0.00017799,2]
[400404331,1767516637619,-21119.6368097,0.00017799,2]
[400404332,1767516637648,-2133.85777804,0.00017799,2]
[400404333,1767516637665,-3337.82821734,0.00017799,2]
[400404334,1767516637676,-1256.03911764,0.00017799,2]
[400404335,1767516637688,-281.55,0.00017799,2]
[400404336,1767516637702,-574.0,0.00017799,2]
[400404337,1767516637717,-314.06540004,0.00017799,2]
[400404338,1767516637729,-2699.99998479,0.00017799,2]
[400404339,1767516637761,-3375.5170958,0.00017799,2]
[400404340,1767516637772,-1419.72595635,0.00017799,2]
[400404341,1767516637786,-1691.06524236,0.00017799,2]
[400404359,1767516638043,-8890.7408021,0.00017799,2]
[400404361,1767516638059,-1037.74997,0.00017799,2]
[400404363,1767516638072,-696.05560694,0.00017799,2]
[400404372,1767516638154,-10121.35432868,0.00017799,2]
[400404374,1767516638166,-18200.89889173,0.00017799,2]
[400404419,1767516639757,-311217.02782271,0.00017799,2]
[400404420,1767516639770,-8450.07069859,0.00017799,2]
[400404421,1767516639861,-361484.56453393,0.00017799,2]
[400404422,1767516639915,-378.66,0.00017799,2]
[400404423,1767516639970,-6251.40605885,0.00017799,2]
[400404424,1767516640076,-11254.02052474,0.00017799,2]
[400404439,1767516643325,-2856.6204109,0.00017799,2]
[400404445,1767516643380,-416.5717138,0.00017799,2]
[400404446,1767516643392,-10906.82952769,0.00017799,2]
[400404447,1767516643405,-500.0,0.00017799,2]
[400404448,1767516643451,-541.90514706,0.00017799,2]
[400404449,1767516643463,-569.06117001,0.00017799,2]
[400404450,1767516643514,-379.80739972,0.00017799,2]
[400404451,1767516643526,-1174.910634,0.00017799,2]
[400404452,1767516643537,-552.64413629,0.00017799,2]
[400404453,1767516643856,200.0,0.00017025,2]
[400404454,1767516644293,-897.93027432,0.00017799,2]
[400404455,1767516644353,-740.39071647,0.00017799,2]
[400404456,1767516644366,-306.23900044,0.00017799,2]
[400404457,1767516644400,422.71458731,0.00017099,2]
[400404460,1767516645667,-1000.0,0.00017799,2]
[400404461,1767516645726,-254.08020516,0.00017799,2]
[400404462,1767516645784,-518.80238673,0.00017799,2]
[400404463,1767516645801,-4562.3579844,0.00017799,2]
[400404464,1767516672826,1691.63508253,0.00016943,2]
[400404465,1767516672851,465.72491747,0.00016943,2]
[400404466,1767516703851,500.0,0.00016913,3]
[400404467,1767516706634,1202.33,0.00043665,30]
[400404468,1767516725302,200.0,0.00043665,120]
[400404469,1767516725535,195.96794255,0.00043665,120]
[400404470,1767516725922,200.0,0.00043665,120]
[400404471,1767516727924,151.0,0.00043665,120]
[400404472,1767516732795,200.0,0.00043665,120]
[400404473,1767516733514,200.0,0.00043665,120]
[400404474,1767516734149,250.0,0.00043665,120]
[400404475,1767516734790,250.0,0.00043665,120]
[400404476,1767516735435,250.0,0.00043665,120]
[400404477,1767516736094,250.0,0.00043665,120]
[400404478,1767516736199,414.0,0.00043665,120]
[400404479,1767516736697,250.0,0.00043665,120]
[400404480,1767516737377,250.0,0.00043665,120]
[400404481,1767516737880,250.0,0.00043665,120]
[400404482,1767516737930,250.0,0.00043665,120]
[400404483,1767516738507,250.0,0.00043665,120]
[400404484,1767516738550,250.0,0.00043665,120]
[400404485,1767516738750,321.63341275,0.00043665,120]
[400404486,1767516739072,151.0,0.00043665,120]
[400404487,1767516739133,250.0,0.00043665,120]
[400404488,1767516739176,250.0,0.00043665,120]
[400404489,1767516739744,151.0,0.00043665,120]
[400404490,1767516739785,250.0,0.00043665,120]
[400404491,1767516739823,250.0,0.00043665,120]
[400404492,1767516740368,151.0,0.00043665,120]
[400404493,1767516740419,250.0,0.00043665,120]
[400404494,1767516740539,250.0,0.00043665,120]
[400404495,1767516740979,151.0,0.00043665,120]
[400404496,1767516741022,250.0,0.00043665,120]
[400404497,1767516741630,151.0,0.00043665,120]
[400404498,1767516741671,250.0,0.00043665,120]
[400404499,1767516742269,151.0,0.00043665,120]
[400404500,1767516742343,250.0,0.00043665,120]
[400404501,1767516743053,151.0,0.00043665,120]
[400404502,1767516743095,250.0,0.00043665,120]
[400404503,1767516743568,151.0,0.00043665,120]
[400404504,1767516743727,250.0,0.00043665,120]
[400404505,1767516744189,151.0,0.00043665,120]
[400404506,1767516744322,250.0,0.00043665,120]
[400404507,1767516744850,151.0,0.00043665,120]
[400404508,1767516745468,151.0,0.00043665,120]
[400404509,1767516760442,6705.27,0.00016896,2]
[400404513,1767516790519,160.12855637,0.00043665,120]
[400404514,1767516805045,172.825928,0.00043665,65]
[400404516,1767516899375,1668.53508253,0.00016884,2]
[400404517,1767516899401,183.88491747,0.00016884,2]
[400404518,1767517060479,-340.93978412,0.00017099,2]
[400404519,1767517060509,-250.0,0.00017123,2]
[400404520,1767517060537,-300.0,0.00017123,2]
[400404521,1767517060566,-300.0,0.00017147,2]
[400404522,1767517060598,-195.0,0.00017195,2]
[400404523,1767517060626,-300.0,0.00017201,2]
[400404524,1767517060655,-300.0,0.00017201,2]
[400404525,1767517060685,-300.0,0.00017273,2]
[400404526,1767517060713,-300.0,0.00017273,2]
[400404527,1767517060741,-1524.64947797,0.0001729,2]
[400404528,1767517060770,-665.2812351,0.00017391,2]
[400404529,1767517060797,-151.31815034,0.00017391,10]
[400404530,1767517069548,-177.31565734,0.00017682,2]
[400404531,1767517069577,-177.31565734,0.00017699,2]
[400404532,1767517069604,-195.0,0.00017782,2]
[400404533,1767517069649,-594.2092946,0.00017783,2]
[400404534,1767517069683,-151.0,0.00017788,2]
[400404535,1767517069714,-151.0,0.00017788,2]